[Event "Late-Titled-Tuesday-Blitz-March-26-2024"]
[Site "Chess.com"]
[Date "2024.03.26"]
[Round "6"]
[White "Jimonios"]
[Black "vladoboch"]
[Result "0-1"]
[WhiteElo "2603"]
[BlackElo "2494"]
[TimeControl "180+1"]
[EndTime "15:05:50 PDT"]
[Termination "vladoboch won by resignation"]

1. Nc3 {[%clk 0:03:00.9]} 1... Nf6 {[%clk 0:02:52.1]} 2. e4 {[%clk 0:03:00]}
2... e5 {[%clk 0:02:51]} 3. Bc4 {[%clk 0:02:58.9]} 3... Bc5 {[%clk 0:02:43.7]}
4. d3 {[%clk 0:02:59.1]} 4... O-O {[%clk 0:02:39.3]} 5. f4 {[%clk 0:02:58.9]}
5... d6 {[%clk 0:02:26.7]} 6. Nf3 {[%clk 0:02:56.7]} 6... Nc6 {[%clk 0:02:18.8]}
7. f5 {[%clk 0:02:52.6]} 7... Na5 {[%clk 0:02:10.7]} 8. Qe2 {[%clk 0:02:50.3]}
8... c6 {[%clk 0:02:07.8]} 9. Bg5 {[%clk 0:02:38.1]} 9... Nxc4 {[%clk
0:01:37.6]} 10. dxc4 {[%clk 0:02:38.1]} 10... h6 {[%clk 0:01:38.2]} 11. Bh4
{[%clk 0:02:37.8]} 11... g5 {[%clk 0:01:36.6]} 12. fxg6 {[%clk 0:02:29.6]} 12...
fxg6 {[%clk 0:01:36.4]} 13. O-O-O {[%clk 0:02:23.4]} 13... Qe7 {[%clk
0:01:19.9]} 14. Na4 {[%clk 0:02:13.9]} 14... Bb4 {[%clk 0:01:10.3]} 15. c3
{[%clk 0:02:00]} 15... Ba5 {[%clk 0:01:09.4]} 16. Qd2 {[%clk 0:01:55]} 16... g5
{[%clk 0:01:02]} 17. Bxg5 {[%clk 0:01:22]} 17... hxg5 {[%clk 0:01:02.9]} 18.
Qxg5+ {[%clk 0:01:21.9]} 18... Qg7 {[%clk 0:01:00]} 19. Rxd6 {[%clk 0:01:17.9]}
19... Nxe4 {[%clk 0:00:46.3]} 20. Qxg7+ {[%clk 0:01:10]} 20... Kxg7 {[%clk
0:00:47.2]} 21. Rdd1 {[%clk 0:01:06.7]} 21... Nf2 {[%clk 0:00:47.2]} 22. Nxe5
{[%clk 0:01:06.5]} 22... Nxh1 {[%clk 0:00:46.2]} 23. Rxh1 {[%clk 0:01:07.4]}
23... Bc7 {[%clk 0:00:45.2]} 24. Nf3 {[%clk 0:01:07]} 24... Bg4 {[%clk
0:00:40.6]} 25. Nd4 {[%clk 0:01:07.3]} 25... b6 {[%clk 0:00:30.9]} 26. h3 {[%clk
0:01:06.7]} 26... Bd7 {[%clk 0:00:27.9]} 27. c5 {[%clk 0:01:06.6]} 27... b5
{[%clk 0:00:27.2]} 0-1

[Event "Late-Titled-Tuesday-Blitz-March-26-2024"]
[Site "Chess.com"]
[Date "2024.03.26"]
[Round "6"]
[White "jcibarra"]
[Black "AnthonyWirig"]
[Result "1-0"]
[WhiteElo "2995"]
[BlackElo "2827"]
[TimeControl "180+1"]
[EndTime "15:06:10 PDT"]
[Termination "jcibarra won by resignation"]

1. e4 {[%clk 0:03:00.9]} 1... c5 {[%clk 0:03:00]} 2. Nf3 {[%clk 0:03:01.3]} 2...
e6 {[%clk 0:03:00]} 3. d3 {[%clk 0:02:59.1]} 3... d5 {[%clk 0:02:58.3]} 4. Qe2
{[%clk 0:02:59]} 4... Nf6 {[%clk 0:02:52.6]} 5. g3 {[%clk 0:02:59]} 5... Be7
{[%clk 0:02:51.4]} 6. Bg2 {[%clk 0:02:57.7]} 6... b6 {[%clk 0:02:49.7]} 7. e5
{[%clk 0:02:56.6]} 7... Nfd7 {[%clk 0:02:49.3]} 8. h4 {[%clk 0:02:57.4]} 8... h6
{[%clk 0:02:49.4]} 9. c4 {[%clk 0:02:56.7]} 9... Bb7 {[%clk 0:02:47.7]} 10. Nc3
{[%clk 0:02:56.9]} 10... Na6 {[%clk 0:02:36.7]} 11. cxd5 {[%clk 0:02:53.3]}
11... exd5 {[%clk 0:02:34]} 12. O-O {[%clk 0:02:47]} 12... Nf8 {[%clk
0:02:33.1]} 13. d4 {[%clk 0:02:41.7]} 13... Ne6 {[%clk 0:02:32.5]} 14. Rd1
{[%clk 0:02:41.2]} 14... Nac7 {[%clk 0:02:19.2]} 15. Be3 {[%clk 0:02:36.8]}
15... c4 {[%clk 0:02:12.2]} 16. Nd2 {[%clk 0:02:33.1]} 16... b5 {[%clk 0:02:01]}
17. f4 {[%clk 0:02:32.4]} 17... g6 {[%clk 0:02:01]} 18. h5 {[%clk 0:02:28.9]}
18... b4 {[%clk 0:01:56.3]} 19. Na4 {[%clk 0:02:29.1]} 19... Ba6 {[%clk
0:01:17.7]} 20. hxg6 {[%clk 0:02:20]} 20... c3 {[%clk 0:01:12.6]} 21. gxf7+
{[%clk 0:02:20.2]} 21... Kf8 {[%clk 0:01:11.9]} 22. Qh5 {[%clk 0:02:15.3]} 22...
Ng7 {[%clk 0:01:10.3]} 23. Qg6 {[%clk 0:02:12.8]} 23... cxd2 {[%clk 0:00:59.2]}
24. f5 {[%clk 0:02:12.5]} 24... Bg5 {[%clk 0:00:53.9]} 25. Bxg5 {[%clk
0:01:40.9]} 25... Qxg5 {[%clk 0:00:54.8]} 26. Qd6+ {[%clk 0:01:40.5]} 26... Qe7
{[%clk 0:00:50]} 27. f6 {[%clk 0:01:33.3]} 27... Qxd6 {[%clk 0:00:45.2]} 28.
fxg7+ {[%clk 0:01:32.2]} 28... Kxg7 {[%clk 0:00:46.1]} 29. exd6 {[%clk
0:01:32.7]} 29... Nb5 {[%clk 0:00:35.8]} 30. Nc5 {[%clk 0:01:27.5]} 30... Nxd4
{[%clk 0:00:06.6]} 31. Nxa6 {[%clk 0:01:26.5]} 31... Raf8 {[%clk 0:00:05.2]} 32.
Bxd5 {[%clk 0:01:24.5]} 32... Nf5 {[%clk 0:00:03]} 33. Nc5 {[%clk 0:01:20.3]}
1-0

[Event "Late-Titled-Tuesday-Blitz-March-26-2024"]
[Site "Chess.com"]
[Date "2024.03.26"]
[Round "6"]
[White "baki83"]
[Black "LikeWater"]
[Result "1-0"]
[WhiteElo "2902"]
[BlackElo "2708"]
[TimeControl "180+1"]
[EndTime "15:06:11 PDT"]
[Termination "baki83 won by checkmate"]

1. e4 {[%clk 0:02:57.1]} 1... c6 {[%clk 0:02:55.3]} 2. d4 {[%clk 0:02:56.2]}
2... d5 {[%clk 0:02:55]} 3. e5 {[%clk 0:02:56.7]} 3... Bf5 {[%clk 0:02:53.9]} 4.
h4 {[%clk 0:02:54.8]} 4... h6 {[%clk 0:02:52]} 5. Bd3 {[%clk 0:02:41]} 5... Bxd3
{[%clk 0:02:46.3]} 6. Qxd3 {[%clk 0:02:40.7]} 6... e6 {[%clk 0:02:45.1]} 7. c3
{[%clk 0:02:40.3]} 7... c5 {[%clk 0:02:40.5]} 8. Nf3 {[%clk 0:02:39.9]} 8... Nc6
{[%clk 0:02:37.2]} 9. a3 {[%clk 0:02:39.8]} 9... Qb6 {[%clk 0:02:23.5]} 10. O-O
{[%clk 0:02:35.9]} 10... c4 {[%clk 0:01:58.5]} 11. Qc2 {[%clk 0:02:16.7]} 11...
O-O-O {[%clk 0:01:46.8]} 12. Nbd2 {[%clk 0:02:15.9]} 12... Kb8 {[%clk
0:01:37.8]} 13. b3 {[%clk 0:02:07.2]} 13... cxb3 {[%clk 0:01:36.9]} 14. Nxb3
{[%clk 0:02:08.1]} 14... Rc8 {[%clk 0:01:32.5]} 15. Bd2 {[%clk 0:02:03.5]} 15...
Nge7 {[%clk 0:01:15.2]} 16. Nc5 {[%clk 0:02:00.3]} 16... Qd8 {[%clk 0:01:00.5]}
17. Rfb1 {[%clk 0:01:54.3]} 17... b6 {[%clk 0:00:57.5]} 18. a4 {[%clk
0:01:49.7]} 18... Ka8 {[%clk 0:00:56.8]} 19. Nb3 {[%clk 0:01:47.1]} 19... Nf5
{[%clk 0:00:37.3]} 20. Qd3 {[%clk 0:01:47]} 20... Nxh4 {[%clk 0:00:27.9]} 21.
Nxh4 {[%clk 0:01:46.7]} 21... Qxh4 {[%clk 0:00:28.8]} 22. a5 {[%clk 0:01:46.6]}
22... Qe4 {[%clk 0:00:16.4]} 23. Qa6 {[%clk 0:01:36.6]} 23... Rb8 {[%clk
0:00:13.7]} 24. axb6 {[%clk 0:01:28]} 24... Rxb6 {[%clk 0:00:12]} 25. Qc8+
{[%clk 0:01:23]} 25... Nb8 {[%clk 0:00:12.1]} 26. Rxa7+ {[%clk 0:01:09.7]} 26...
Kxa7 {[%clk 0:00:13]} 27. Qc7+ {[%clk 0:01:09.7]} 27... Rb7 {[%clk 0:00:09.6]}
28. Ra1+ {[%clk 0:01:08.6]} 28... Na6 {[%clk 0:00:09]} 29. Rxa6+ {[%clk
0:01:09.2]} 29... Kxa6 {[%clk 0:00:08.9]} 30. Qa5# {[%clk 0:01:10.1]} 1-0

[Event "Late-Titled-Tuesday-Blitz-March-26-2024"]
[Site "Chess.com"]
[Date "2024.03.26"]
[Round "6"]
[White "carloseduar100"]
[Black "dennisodessa"]
[Result "0-1"]
[WhiteElo "2256"]
[BlackElo "2523"]
[TimeControl "180+1"]
[EndTime "15:06:14 PDT"]
[Termination "dennisodessa won by checkmate"]

1. d4 {[%clk 0:02:55]} 1... e6 {[%clk 0:03:00.9]} 2. c3 {[%clk 0:02:52.9]} 2...
Nf6 {[%clk 0:03:00.4]} 3. Bg5 {[%clk 0:02:53.1]} 3... c5 {[%clk 0:02:51.9]} 4.
e3 {[%clk 0:02:51.5]} 4... d5 {[%clk 0:02:48.3]} 5. Nf3 {[%clk 0:02:50.2]} 5...
Nc6 {[%clk 0:02:44.6]} 6. Nbd2 {[%clk 0:02:50]} 6... Be7 {[%clk 0:02:44.5]} 7.
Bd3 {[%clk 0:02:49.1]} 7... O-O {[%clk 0:02:41.5]} 8. O-O {[%clk 0:02:47.1]}
8... Bd7 {[%clk 0:02:37.2]} 9. Rc1 {[%clk 0:02:46.3]} 9... Qb6 {[%clk
0:02:36.9]} 10. b3 {[%clk 0:02:45.1]} 10... h6 {[%clk 0:02:32.2]} 11. Bh4 {[%clk
0:02:45]} 11... Rac8 {[%clk 0:02:31.5]} 12. Re1 {[%clk 0:02:44.7]} 12... Rfd8
{[%clk 0:02:29.2]} 13. dxc5 {[%clk 0:02:40.2]} 13... Qxc5 {[%clk 0:02:30.1]} 14.
e4 {[%clk 0:02:40.2]} 14... dxe4 {[%clk 0:02:30.3]} 15. Nxe4 {[%clk 0:02:28.6]}
15... Nxe4 {[%clk 0:02:31.2]} 16. Bxe7 {[%clk 0:02:26.3]} 16... Qxf2+ {[%clk
0:02:20.4]} 17. Kh1 {[%clk 0:02:26.6]} 17... Nxe7 {[%clk 0:02:21.3]} 18. Rxe4
{[%clk 0:02:22.7]} 18... Bc6 {[%clk 0:02:05.7]} 19. Rd4 {[%clk 0:02:18]} 19...
Bxf3 {[%clk 0:02:03.9]} 20. Rxd8+ {[%clk 0:02:17]} 20... Rxd8 {[%clk 0:02:03.9]}
21. gxf3 {[%clk 0:02:09.4]} 21... Qe3 {[%clk 0:01:43.7]} 22. Bh7+ {[%clk
0:01:22.5]} 22... Kxh7 {[%clk 0:01:39.8]} 23. Qxd8 {[%clk 0:01:23.4]} 23...
Qxc1+ {[%clk 0:01:33.6]} 24. Kg2 {[%clk 0:01:24.3]} 24... Ng6 {[%clk 0:01:25]}
25. Qd3 {[%clk 0:01:22.8]} 25... Qb2+ {[%clk 0:01:20.9]} 26. Kg3 {[%clk
0:01:21.3]} 26... Qxa2 {[%clk 0:01:20.6]} 27. h4 {[%clk 0:01:21.4]} 27... Qa5
{[%clk 0:01:14.4]} 28. b4 {[%clk 0:01:20.1]} 28... Qf5 {[%clk 0:01:14.1]} 29.
Qd6 {[%clk 0:01:18.8]} 29... e5 {[%clk 0:01:08.6]} 30. Qc7 {[%clk 0:00:58.2]}
30... Qf4+ {[%clk 0:01:07.6]} 31. Kf2 {[%clk 0:00:58.6]} 31... Nxh4 {[%clk
0:01:08.5]} 32. Qxb7 {[%clk 0:00:58.7]} 32... Qd2+ {[%clk 0:01:01.1]} 33. Kg3
{[%clk 0:00:58.1]} 33... Nf5+ {[%clk 0:01:00.7]} 34. Kh3 {[%clk 0:00:56.7]}
34... Qf2 {[%clk 0:00:50.1]} 35. Kg4 {[%clk 0:00:47.8]} 35... Qg3+ {[%clk
0:00:49.6]} 36. Kxf5 {[%clk 0:00:47.9]} 36... Qf4# {[%clk 0:00:50.3]} 0-1

[Event "Late-Titled-Tuesday-Blitz-March-26-2024"]
[Site "Chess.com"]
[Date "2024.03.26"]
[Round "6"]
[White "Msb2"]
[Black "stollenmonster"]
[Result "1-0"]
[WhiteElo "3030"]
[BlackElo "2865"]
[TimeControl "180+1"]
[EndTime "15:06:15 PDT"]
[Termination "Msb2 won by checkmate"]

1. d4 {[%clk 0:03:00.9]} 1... Nf6 {[%clk 0:02:45.6]} 2. c4 {[%clk 0:03:01.3]}
2... e6 {[%clk 0:02:45.7]} 3. Nc3 {[%clk 0:03:01.7]} 3... d5 {[%clk 0:02:46.6]}
4. cxd5 {[%clk 0:03:02.6]} 4... Nxd5 {[%clk 0:02:47]} 5. e4 {[%clk 0:03:03.3]}
5... Nxc3 {[%clk 0:02:47.4]} 6. bxc3 {[%clk 0:03:04.2]} 6... b6 {[%clk 0:02:48]}
7. Bd3 {[%clk 0:02:59.5]} 7... Bb7 {[%clk 0:02:48.1]} 8. Nf3 {[%clk 0:02:58.9]}
8... Nd7 {[%clk 0:02:47.1]} 9. h4 {[%clk 0:02:58.4]} 9... Be7 {[%clk 0:02:46.8]}
10. h5 {[%clk 0:02:58.1]} 10... h6 {[%clk 0:02:47.5]} 11. Qe2 {[%clk 0:02:54.4]}
11... c5 {[%clk 0:02:45.7]} 12. Rh3 {[%clk 0:02:50.6]} 12... cxd4 {[%clk
0:02:45.5]} 13. cxd4 {[%clk 0:02:51.5]} 13... Rc8 {[%clk 0:02:45.2]} 14. Kf1
{[%clk 0:02:50.4]} 14... Nf6 {[%clk 0:02:37.3]} 15. Bb2 {[%clk 0:02:48.3]} 15...
Kf8 {[%clk 0:02:36.6]} 16. Ne5 {[%clk 0:02:37.7]} 16... Nd7 {[%clk 0:02:18.8]}
17. Nxd7+ {[%clk 0:02:12.1]} 17... Qxd7 {[%clk 0:02:19.7]} 18. Rg3 {[%clk
0:02:04.7]} 18... Rg8 {[%clk 0:01:55.2]} 19. Rd1 {[%clk 0:02:00.4]} 19... Qa4
{[%clk 0:01:52.1]} 20. Kg1 {[%clk 0:01:47.4]} 20... Rd8 {[%clk 0:01:14.4]} 21.
Bb5 {[%clk 0:01:27.9]} 21... Qa5 {[%clk 0:01:09.6]} 22. a4 {[%clk 0:01:23.7]}
22... a6 {[%clk 0:01:08.6]} 23. Bc3 {[%clk 0:01:08.4]} 23... Bb4 {[%clk
0:01:07.3]} 24. Bxb4+ {[%clk 0:01:09.1]} 24... Qxb4 {[%clk 0:01:07.7]} 25. Bxa6
{[%clk 0:01:09.9]} 25... Bc6 {[%clk 0:00:59.6]} 26. d5 {[%clk 0:01:00.3]} 26...
exd5 {[%clk 0:00:56.2]} 27. exd5 {[%clk 0:01:01.2]} 27... Bxa4 {[%clk
0:00:45.9]} 28. Rc1 {[%clk 0:00:58.9]} 28... Bd7 {[%clk 0:00:31.1]} 29. d6
{[%clk 0:00:44.9]} 29... Qf4 {[%clk 0:00:28.2]} 30. Qe7# {[%clk 0:00:43.1]} 1-0

[Event "Late-Titled-Tuesday-Blitz-March-26-2024"]
[Site "Chess.com"]
[Date "2024.03.26"]
[Round "6"]
[White "janhelmer03"]
[Black "Zq1"]
[Result "1-0"]
[WhiteElo "2427"]
[BlackElo "2626"]
[TimeControl "180+1"]
[EndTime "15:06:23 PDT"]
[Termination "janhelmer03 won by resignation"]

1. Nf3 {[%clk 0:02:56.3]} 1... Nf6 {[%clk 0:02:58.9]} 2. c4 {[%clk 0:02:48.6]}
2... c5 {[%clk 0:02:56.2]} 3. g3 {[%clk 0:02:47.7]} 3... b6 {[%clk 0:02:55.6]}
4. Bg2 {[%clk 0:02:48.2]} 4... Bb7 {[%clk 0:02:55.9]} 5. O-O {[%clk 0:02:48.8]}
5... g6 {[%clk 0:02:55.4]} 6. b3 {[%clk 0:02:49.4]} 6... Bg7 {[%clk 0:02:46.2]}
7. Bb2 {[%clk 0:02:47.6]} 7... O-O {[%clk 0:02:44.1]} 8. d4 {[%clk 0:02:44.4]}
8... cxd4 {[%clk 0:02:42.8]} 9. Nxd4 {[%clk 0:02:45.3]} 9... Bxg2 {[%clk
0:02:41.7]} 10. Kxg2 {[%clk 0:02:46.2]} 10... Qc8 {[%clk 0:02:41.6]} 11. f3
{[%clk 0:02:45.7]} 11... Qb7 {[%clk 0:02:40.8]} 12. e4 {[%clk 0:02:46.3]} 12...
d6 {[%clk 0:02:41.1]} 13. Nc3 {[%clk 0:02:46]} 13... Nbd7 {[%clk 0:02:41.1]} 14.
Nd5 {[%clk 0:02:44.6]} 14... Rfe8 {[%clk 0:02:41.2]} 15. Qd2 {[%clk 0:02:42.4]}
15... a6 {[%clk 0:02:40.4]} 16. a4 {[%clk 0:02:42.1]} 16... Nc5 {[%clk
0:02:29.7]} 17. b4 {[%clk 0:02:37]} 17... Ncd7 {[%clk 0:02:24.5]} 18. b5 {[%clk
0:02:35.1]} 18... Ne5 {[%clk 0:02:14.4]} 19. Qe2 {[%clk 0:02:28.7]} 19... e6
{[%clk 0:02:04.1]} 20. Nxf6+ {[%clk 0:02:02.3]} 20... Bxf6 {[%clk 0:02:03.4]}
21. Nc6 {[%clk 0:02:03.2]} 21... Bg7 {[%clk 0:01:54.4]} 22. Bxe5 {[%clk
0:02:02.1]} 22... dxe5 {[%clk 0:01:53]} 23. Rfd1 {[%clk 0:01:59]} 23... h5
{[%clk 0:01:16.1]} 24. Qe3 {[%clk 0:01:46.7]} 24... axb5 {[%clk 0:01:10.7]} 25.
axb5 {[%clk 0:01:46.2]} 25... Rxa1 {[%clk 0:01:07.2]} 26. Rxa1 {[%clk
0:01:47.1]} 26... Qc7 {[%clk 0:00:59.7]} 27. Qd3 {[%clk 0:01:40.9]} 27... Qc8
{[%clk 0:00:23.7]} 28. Ra7 {[%clk 0:01:38.5]} 28... Bf8 {[%clk 0:00:19.9]} 29.
Qe3 {[%clk 0:01:32.5]} 29... Bc5 {[%clk 0:00:17.3]} 30. Qg5 {[%clk 0:01:30.4]}
30... Rf8 {[%clk 0:00:12.1]} 31. Qxe5 {[%clk 0:01:28.6]} 31... Qe8 {[%clk
0:00:09.8]} 32. Qf6 {[%clk 0:01:21.4]} 32... Qc8 {[%clk 0:00:07.7]} 33. h4
{[%clk 0:01:13.4]} 33... Bd6 {[%clk 0:00:07.6]} 34. g4 {[%clk 0:01:11.3]} 34...
hxg4 {[%clk 0:00:06.9]} 35. fxg4 {[%clk 0:01:10.6]} 35... Bc5 {[%clk 0:00:06.1]}
36. h5 {[%clk 0:01:10]} 1-0

[Event "Late-Titled-Tuesday-Blitz-March-26-2024"]
[Site "Chess.com"]
[Date "2024.03.26"]
[Round "6"]
[White "TigrVShlyape"]
[Black "jefferyx"]
[Result "1/2-1/2"]
[WhiteElo "2911"]
[BlackElo "3100"]
[TimeControl "180+1"]
[EndTime "15:06:26 PDT"]
[Termination "Game drawn by repetition"]

1. d4 {[%clk 0:03:00.9]} 1... f5 {[%clk 0:02:58.1]} 2. Nc3 {[%clk 0:02:56.3]}
2... Nf6 {[%clk 0:02:54.3]} 3. Bg5 {[%clk 0:02:54.5]} 3... d5 {[%clk 0:02:54.8]}
4. e3 {[%clk 0:02:52.2]} 4... c6 {[%clk 0:02:52.9]} 5. Bd3 {[%clk 0:02:50.2]}
5... g6 {[%clk 0:02:36.1]} 6. Nf3 {[%clk 0:02:48.6]} 6... Bg7 {[%clk 0:02:36.4]}
7. O-O {[%clk 0:02:46.1]} 7... Ne4 {[%clk 0:02:36]} 8. Bf4 {[%clk 0:02:42.6]}
8... Nd7 {[%clk 0:02:12.4]} 9. Ne2 {[%clk 0:02:40.9]} 9... e6 {[%clk 0:02:09.9]}
10. c4 {[%clk 0:02:34.4]} 10... O-O {[%clk 0:02:02.8]} 11. Rc1 {[%clk
0:02:13.3]} 11... Qe7 {[%clk 0:02:00.4]} 12. a3 {[%clk 0:01:47.9]} 12... a5
{[%clk 0:01:59.9]} 13. Ne5 {[%clk 0:01:21.8]} 13... Nxe5 {[%clk 0:01:59.8]} 14.
Bxe5 {[%clk 0:01:21.8]} 14... Bxe5 {[%clk 0:01:56.2]} 15. dxe5 {[%clk
0:01:22.1]} 15... Bd7 {[%clk 0:01:56.9]} 16. f3 {[%clk 0:01:15.9]} 16... Nc5
{[%clk 0:01:56.9]} 17. cxd5 {[%clk 0:01:05.3]} 17... exd5 {[%clk 0:01:54.4]} 18.
f4 {[%clk 0:01:05.3]} 18... Ne6 {[%clk 0:01:39.6]} 19. Nd4 {[%clk 0:01:00.6]}
19... c5 {[%clk 0:01:28.4]} 20. Nxe6 {[%clk 0:00:57.4]} 20... Bxe6 {[%clk
0:01:29.3]} 21. Bb5 {[%clk 0:00:52.7]} 21... Rfd8 {[%clk 0:01:28.4]} 22. Qc2
{[%clk 0:00:33.6]} 22... b6 {[%clk 0:01:28.6]} 23. Rcd1 {[%clk 0:00:31.3]} 23...
Rac8 {[%clk 0:01:25.2]} 24. h3 {[%clk 0:00:30.1]} 24... Kg7 {[%clk 0:01:16.9]}
25. Qf2 {[%clk 0:00:27.7]} 25... c4 {[%clk 0:00:58.6]} 26. a4 {[%clk 0:00:26.7]}
26... c3 {[%clk 0:00:59.1]} 27. bxc3 {[%clk 0:00:24.7]} 27... Rxc3 {[%clk
0:01:00]} 28. Kh2 {[%clk 0:00:23]} 28... Rdc8 {[%clk 0:00:58]} 29. Rd4 {[%clk
0:00:19.4]} 29... Rc2 {[%clk 0:00:44.2]} 30. Rd2 {[%clk 0:00:19.2]} 30... R2c3
{[%clk 0:00:42.7]} 31. Rd4 {[%clk 0:00:19]} 31... Rc2 {[%clk 0:00:42.6]} 32. Rd2
{[%clk 0:00:19.1]} 32... R2c3 {[%clk 0:00:43]} 33. Rd4 {[%clk 0:00:18.8]}
1/2-1/2

[Event "Late-Titled-Tuesday-Blitz-March-26-2024"]
[Site "Chess.com"]
[Date "2024.03.26"]
[Round "6"]
[White "Godzillator"]
[Black "tarno17"]
[Result "1-0"]
[WhiteElo "2382"]
[BlackElo "2196"]
[TimeControl "180+1"]
[EndTime "15:06:26 PDT"]
[Termination "Godzillator won on time"]

1. c4 {[%clk 0:02:59.6]} 1... e5 {[%clk 0:02:59.4]} 2. d3 {[%clk 0:02:56.6]}
2... Nf6 {[%clk 0:02:58.8]} 3. Nf3 {[%clk 0:02:56.6]} 3... Bb4+ {[%clk
0:02:58.6]} 4. Nbd2 {[%clk 0:02:54.1]} 4... d6 {[%clk 0:02:58]} 5. g3 {[%clk
0:02:54.3]} 5... O-O {[%clk 0:02:57.5]} 6. Bg2 {[%clk 0:02:54.6]} 6... Re8
{[%clk 0:02:33]} 7. O-O {[%clk 0:02:53.5]} 7... Nbd7 {[%clk 0:02:32.9]} 8. a3
{[%clk 0:02:50.9]} 8... Bxd2 {[%clk 0:02:31.7]} 9. Nxd2 {[%clk 0:02:51]} 9...
Nf8 {[%clk 0:02:31.2]} 10. b4 {[%clk 0:02:49.9]} 10... Ng6 {[%clk 0:02:31]} 11.
Bb2 {[%clk 0:02:49.7]} 11... c6 {[%clk 0:02:30.2]} 12. Ne4 {[%clk 0:02:46.8]}
12... Nxe4 {[%clk 0:02:13.7]} 13. dxe4 {[%clk 0:02:43.4]} 13... Be6 {[%clk
0:02:11]} 14. Qd3 {[%clk 0:02:40.3]} 14... Qb6 {[%clk 0:02:01]} 15. Rab1 {[%clk
0:02:31.2]} 15... Rad8 {[%clk 0:01:59.1]} 16. Rfd1 {[%clk 0:02:29.4]} 16... Ne7
{[%clk 0:01:38.9]} 17. Qc2 {[%clk 0:02:24.6]} 17... f5 {[%clk 0:01:31.8]} 18. c5
{[%clk 0:02:21.1]} 18... dxc5 {[%clk 0:01:21.9]} 19. bxc5 {[%clk 0:02:21.1]}
19... Rxd1+ {[%clk 0:00:43.5]} 20. Rxd1 {[%clk 0:02:18.4]} 20... Qb3 {[%clk
0:00:41.5]} 21. Qxb3 {[%clk 0:02:15.3]} 21... Bxb3 {[%clk 0:00:42.4]} 22. Rd7
{[%clk 0:02:14.6]} 22... b6 {[%clk 0:00:17.9]} 23. Bxe5 {[%clk 0:02:09.4]} 23...
fxe4 {[%clk 0:00:10.6]} 24. Bd6 {[%clk 0:01:58.1]} 24... Nf5 {[%clk 0:00:08.7]}
25. Rxa7 {[%clk 0:01:57.8]} 25... Nxd6 {[%clk 0:00:08.2]} 26. cxd6 {[%clk
0:01:58]} 26... Bd5 {[%clk 0:00:08.6]} 27. Bh3 {[%clk 0:01:46.7]} 27... Rd8
{[%clk 0:00:08.7]} 28. d7 {[%clk 0:01:44.1]} 28... Kf8 {[%clk 0:00:08.5]} 29. a4
{[%clk 0:01:43.4]} 29... b5 {[%clk 0:00:08.3]} 30. a5 {[%clk 0:01:43.2]} 30...
Ke7 {[%clk 0:00:07.9]} 31. a6 {[%clk 0:01:42.6]} 31... c5 {[%clk 0:00:08]} 32.
Rc7 {[%clk 0:01:41.9]} 32... c4 {[%clk 0:00:07.7]} 33. a7 {[%clk 0:01:41.7]}
33... Kd6 {[%clk 0:00:07]} 34. Rc8 {[%clk 0:01:40.5]} 34... Ke7 {[%clk
0:00:07.5]} 35. Rb8 {[%clk 0:01:33.9]} 35... c3 {[%clk 0:00:06.4]} 36. Rxb5
{[%clk 0:01:30.1]} 36... Kd6 {[%clk 0:00:05.4]} 37. Rb8 {[%clk 0:01:27.2]} 37...
c2 {[%clk 0:00:03.5]} 38. Rxd8 {[%clk 0:01:24.8]} 38... c1=Q+ {[%clk 0:00:03.4]}
39. Bf1 {[%clk 0:01:24.8]} 39... e3 {[%clk 0:00:01.5]} 40. f3 {[%clk 0:01:22.1]}
1-0

[Event "Late-Titled-Tuesday-Blitz-March-26-2024"]
[Site "Chess.com"]
[Date "2024.03.26"]
[Round "6"]
[White "cakeuvdort"]
[Black "kinga2008"]
[Result "0-1"]
[WhiteElo "2172"]
[BlackElo "2447"]
[TimeControl "180+1"]
[EndTime "15:06:42 PDT"]
[Termination "kinga2008 won by resignation"]

1. Nf3 {[%clk 0:02:32.7]} 1... c6 {[%clk 0:02:56]} 2. e3 {[%clk 0:02:33.6]} 2...
d5 {[%clk 0:02:56]} 3. b3 {[%clk 0:02:32.7]} 3... Nf6 {[%clk 0:02:54.6]} 4. Bb2
{[%clk 0:02:33.1]} 4... Bg4 {[%clk 0:02:52.8]} 5. h3 {[%clk 0:02:28.2]} 5... Bh5
{[%clk 0:02:52.5]} 6. g4 {[%clk 0:02:26.7]} 6... Bg6 {[%clk 0:02:51.6]} 7. Ne5
{[%clk 0:02:27.2]} 7... Nbd7 {[%clk 0:02:46]} 8. f4 {[%clk 0:02:27.2]} 8... e6
{[%clk 0:02:44.8]} 9. d3 {[%clk 0:02:15.8]} 9... Bd6 {[%clk 0:02:43]} 10. Nd2
{[%clk 0:02:13.2]} 10... Bxe5 {[%clk 0:02:31.7]} 11. fxe5 {[%clk 0:02:08.9]}
11... Ng8 {[%clk 0:02:30.4]} 12. Nf3 {[%clk 0:02:02.1]} 12... h5 {[%clk
0:02:26.2]} 13. g5 {[%clk 0:01:57.7]} 13... h4 {[%clk 0:02:20.8]} 14. Qd2 {[%clk
0:01:46.8]} 14... Ne7 {[%clk 0:02:19.2]} 15. O-O-O {[%clk 0:01:35.7]} 15... Nf5
{[%clk 0:02:18.2]} 16. Rg1 {[%clk 0:01:35]} 16... Bh5 {[%clk 0:02:16.7]} 17. Qf2
{[%clk 0:01:29.2]} 17... Qb6 {[%clk 0:02:14.7]} 18. d4 {[%clk 0:01:28.8]} 18...
a5 {[%clk 0:02:06.2]} 19. a4 {[%clk 0:01:28]} 19... O-O-O {[%clk 0:02:01]} 20.
Bd3 {[%clk 0:01:17.3]} 20... Bxf3 {[%clk 0:01:56.1]} 21. Qxf3 {[%clk 0:01:16]}
21... g6 {[%clk 0:01:55.6]} 22. Bc3 {[%clk 0:00:54.1]} 22... c5 {[%clk
0:01:52.5]} 23. Bxf5 {[%clk 0:00:52.4]} 23... gxf5 {[%clk 0:01:49.1]} 24. g6
{[%clk 0:00:52.3]} 24... fxg6 {[%clk 0:01:45.3]} 25. Rxg6 {[%clk 0:00:53.2]}
25... c4 {[%clk 0:01:40.1]} 26. bxc4 {[%clk 0:00:48.9]} 26... Qc6 {[%clk
0:01:39.4]} 27. Bxa5 {[%clk 0:00:37.1]} 27... Qxa4 {[%clk 0:01:34.2]} 28. Bxd8
{[%clk 0:00:35.4]} 28... Rxd8 {[%clk 0:01:24.6]} 29. cxd5 {[%clk 0:00:35.6]}
29... Nb6 {[%clk 0:01:16.5]} 30. Kd2 {[%clk 0:00:14.1]} 30... Nc4+ {[%clk
0:01:08.5]} 31. Ke2 {[%clk 0:00:13.9]} 31... Qxc2+ {[%clk 0:01:07.7]} 32. Kf1
{[%clk 0:00:14]} 32... f4 {[%clk 0:00:53.6]} 33. Re1 {[%clk 0:00:07.5]} 33...
Nd2+ {[%clk 0:00:52.5]} 0-1